[Event "Kvibergspelen September 2019"]
[Site "Prioritet Serneke Arena, Krutvagen 2, Gothenburg, Sweden"]
[Date "2019.09.29"]
[Round "7.18"]
[White "Troedsson, Anton"]
[Black "Storme, Isak"]
[Result "1-0"]
[TimeControl "15 minutes + 5 seconds per move from move one (Round 1 - 4) / 90 minutes + 30 seconds per move from move one (Round 5 - 8)"]
[BlackTitle "FM"]
[WhiteFideId "1746006"]
[BlackFideId "1728113"]
[WhiteElo "2056"]
[BlackElo "2272"]

1. Nf3 {[%clk 01:30:52]} {[%emt 00:00:07]} Nf6 {[%clk 01:30:54]} {[%emt
00:00:06]} 2. b3 {[%clk 01:31:17]} {[%emt 00:00:05]} g6 {[%clk 01:31:19]}
{[%emt 00:00:05]} 3. Bb2 {[%clk 01:31:44]} {[%emt 00:00:03]} Bg7 {[%clk
01:31:42]} {[%emt 00:00:07]} 4. c4 {[%clk 01:31:29]} {[%emt 00:00:46]} O-O
{[%clk 01:31:51]} {[%emt 00:00:20]} 5. g3 {[%clk 01:30:56]} {[%emt 00:01:03]}
d6 {[%clk 01:27:06]} {[%emt 00:05:15]} 6. d4 {[%clk 01:31:08]} {[%emt
00:00:18]} Nbd7 {[%clk 01:26:53]} {[%emt 00:00:43]} 7. Bg2 {[%clk 01:31:27]}
{[%emt 00:00:11]} Re8 {[%clk 01:24:25]} {[%emt 00:02:58]} 8. O-O {[%clk
01:29:49]} {[%emt 00:02:08]} c6 {[%clk 01:23:58]} {[%emt 00:00:57]} 9. Nc3
{[%clk 01:26:20]} {[%emt 00:03:59]} e5 {[%clk 01:24:10]} {[%emt 00:00:18]} 10.
d5 {[%clk 01:19:38]} {[%emt 00:07:13]} cxd5 {[%clk 01:23:37]} {[%emt 00:01:03]}
11. Nxd5 {[%clk 01:17:54]} {[%emt 00:02:14]} Nxd5 {[%clk 01:23:26]} {[%emt
00:00:40]} 12. Qxd5 {[%clk 01:18:06]} {[%emt 00:00:18]} Nf6 {[%clk 01:14:21]}
{[%emt 00:09:36]} 13. Qd2 {[%clk 01:11:36]} {[%emt 00:07:00]} e4 {[%clk
01:09:54]} {[%emt 00:04:57]} 14. Ng5 {[%clk 00:59:44]} {[%emt 00:12:21]} Bf5
{[%clk 01:05:24]} {[%emt 00:05:01]} 15. Rad1 {[%clk 00:56:49]} {[%emt
00:03:24]} d5 {[%clk 00:40:18]} {[%emt 00:25:35]} 16. cxd5 {[%clk 00:46:27]}
{[%emt 00:10:54]} Qd7 {[%clk 00:39:48]} {[%emt 00:01:00]} 17. f3 {[%clk
00:45:49]} {[%emt 00:01:08]} e3 {[%clk 00:39:13]} {[%emt 00:01:04]} 18. Qc1
{[%clk 00:44:01]} {[%emt 00:02:19]} h6 {[%clk 00:34:13]} {[%emt 00:05:29]} 19.
Qa1 {[%clk 00:43:07]} {[%emt 00:01:24]} hxg5 {[%clk 00:22:08]} {[%emt
00:12:35]} 20. Bxf6 {[%clk 00:42:12]} {[%emt 00:01:26]} Bxf6 {[%clk 00:22:31]}
{[%emt 00:00:07]} 21. Qxf6 {[%clk 00:42:36]} {[%emt 00:00:04]} Qb5 {[%clk
00:18:38]} {[%emt 00:04:24]} 22. g4 {[%clk 00:35:24]} {[%emt 00:07:42]} Bc2
{[%clk 00:17:11]} {[%emt 00:01:56]} 23. Rd4 {[%clk 00:22:53]} {[%emt 00:13:02]}
Qxe2 {[%clk 00:17:19]} {[%emt 00:00:23]} 24. f4 {[%clk 00:23:13]} {[%emt
00:00:11]} Rac8 {[%clk 00:12:37]} {[%emt 00:05:12]} 25. d6 {[%clk 00:17:44]}
{[%emt 00:05:58]} Bd3 {[%clk 00:07:59]} {[%emt 00:05:08]} 26. d7 {[%clk
00:16:58]} {[%emt 00:01:17]} Qxg2+ {[%clk 00:07:22]} {[%emt 00:01:07]} 27. Kxg2
{[%clk 00:17:15]} {[%emt 00:00:13]} Bxf1+ {[%clk 00:07:47]} {[%emt 00:00:05]}
28. Kf3 {[%clk 00:14:20]} {[%emt 00:03:25]} e2 {[%clk 00:07:35]} {[%emt
00:00:42]} 29. dxc8=Q {[%clk 00:13:32]} {[%emt 00:01:17]} 1-0

[Event "Kvibergspelen September 2019"]
[Site "Prioritet Serneke Arena, Krutvagen 2, Gothenburg, Sweden"]
[Date "2019.09.29"]
[Round "7.19"]
[White "Ernst, Thomas"]
[Black "Svorono, Gabriel"]
[Result "1/2-1/2"]
[TimeControl "15 minutes + 5 seconds per move from move one (Round 1 - 4) / 90 minutes + 30 seconds per move from move one (Round 5 - 8)"]
[WhiteTitle "GM"]
[WhiteFideId "1700065"]
[BlackFideId "1715623"]
[WhiteElo "2328"]
[BlackElo "2082"]

1. e4 {[%clk 01:30:50]} {[%emt 00:00:09]} c5 {[%clk 01:29:38]} {[%emt
00:01:22]} 2. Nf3 {[%clk 01:31:10]} {[%emt 00:00:10]} e6 {[%clk 01:30:02]}
{[%emt 00:00:06]} 3. d4 {[%clk 01:31:33]} {[%emt 00:00:07]} cxd4 {[%clk
01:30:21]} {[%emt 00:00:10]} 4. Nxd4 {[%clk 01:31:57]} {[%emt 00:00:06]} a6
{[%clk 01:30:46]} {[%emt 00:00:06]} 5. Nc3 {[%clk 01:32:04]} {[%emt 00:00:24]}
Qc7 {[%clk 01:30:52]} {[%emt 00:00:22]} 6. g3 {[%clk 01:31:43]} {[%emt
00:00:51]} Bb4 {[%clk 01:30:25]} {[%emt 00:00:57]} 7. Bd2 {[%clk 01:30:43]}
{[%emt 00:01:30]} Nf6 {[%clk 01:29:58]} {[%emt 00:00:58]} 8. Bg2 {[%clk
01:30:44]} {[%emt 00:00:28]} Nc6 {[%clk 01:30:18]} {[%emt 00:00:09]} 9. Nxc6
{[%clk 01:30:50]} {[%emt 00:00:25]} bxc6 {[%clk 01:30:36]} {[%emt 00:00:12]} 10.
O-O {[%clk 01:30:57]} {[%emt 00:00:24]} O-O {[%clk 01:30:42]} {[%emt 00:00:23]}
11. f4 {[%clk 01:30:14]} {[%emt 00:01:13]} d5 {[%clk 01:30:20]} {[%emt
00:00:53]} 12. e5 {[%clk 01:29:50]} {[%emt 00:00:53]} Bc5+ {[%clk 01:24:24]}
{[%emt 00:06:27]} 13. Kh1 {[%clk 01:30:05]} {[%emt 00:00:15]} Nd7 {[%clk
01:24:50]} {[%emt 00:00:03]} 14. Na4 {[%clk 01:29:53]} {[%emt 00:00:42]} Be7
{[%clk 01:12:45]} {[%emt 00:12:35]} 15. c4 {[%clk 01:30:06]} {[%emt 00:00:17]}
dxc4 {[%clk 01:10:46]} {[%emt 00:02:29]} 16. Rc1 {[%clk 01:28:42]} {[%emt
00:01:54]} Bb7 {[%clk 01:03:38]} {[%emt 00:07:39]} 17. Rxc4 {[%clk 01:28:37]}
{[%emt 00:00:34]} c5 {[%clk 01:03:50]} {[%emt 00:00:18]} 18. Qe2 {[%clk
01:21:47]} {[%emt 00:07:17]} a5 {[%clk 00:50:19]} {[%emt 00:14:04]} 19. Bxb7
{[%clk 01:16:25]} {[%emt 00:05:52]} Qxb7+ {[%clk 00:50:43]} {[%emt 00:00:06]}
20. Qg2 {[%clk 01:16:46]} {[%emt 00:00:09]} Qxg2+ {[%clk 00:43:20]} {[%emt
00:07:53]} 21. Kxg2 {[%clk 01:17:12]} {[%emt 00:00:05]} Rfb8 {[%clk 00:43:48]}
{[%emt 00:00:02]} 22. Be3 {[%clk 01:08:51]} {[%emt 00:08:48]} Nb6 {[%clk
00:42:13]} {[%emt 00:02:07]} 23. Nxb6 {[%clk 01:08:40]} {[%emt 00:00:42]} Rxb6
{[%clk 00:42:37]} {[%emt 00:00:04]} 24. Rf2 {[%clk 01:08:20]} {[%emt 00:00:50]}
Rb4 {[%clk 00:36:58]} {[%emt 00:06:10]} 25. Rfc2 {[%clk 01:06:52]} {[%emt
00:01:57]} Rab8 {[%clk 00:36:18]} {[%emt 00:01:10]} 26. b3 {[%clk 01:06:48]}
{[%emt 00:00:35]} Rxc4 {[%clk 00:35:24]} {[%emt 00:01:24]} 27. Rxc4 {[%clk
01:06:11]} {[%emt 00:01:07]} Rb5 {[%clk 00:32:15]} {[%emt 00:03:39]} 28. Kf3
{[%clk 01:00:56]} {[%emt 00:05:44]} Kf8 {[%clk 00:32:00]} {[%emt 00:00:46]} 29.
Ke4 {[%clk 00:56:20]} {[%emt 00:05:06]} Ke8 {[%clk 00:32:00]} {[%emt 00:00:28]}
30. Kd3 {[%clk 00:56:12]} {[%emt 00:00:39]} Kd7 {[%clk 00:32:07]} {[%emt
00:00:21]} 31. Bd2 {[%clk 00:56:11]} {[%emt 00:00:33]} Kc6 {[%clk 00:31:24]}
{[%emt 00:01:14]} 32. Ra4 {[%clk 00:56:20]} {[%emt 00:00:20]} Bd8 {[%clk
00:31:24]} {[%emt 00:00:30]} 33. Kc4 {[%clk 00:55:35]} {[%emt 00:01:15]} h5
{[%clk 00:30:58]} {[%emt 00:00:56]} 34. a3 {[%clk 00:51:12]} {[%emt 00:04:53]}
Bc7 {[%clk 00:25:31]} {[%emt 00:05:57]} 35. Bc3 {[%clk 00:47:38]} {[%emt
00:04:03]} Bb6 {[%clk 00:24:28]} {[%emt 00:01:31]} 36. h3 {[%clk 00:34:55]}
{[%emt 00:13:16]} g6 {[%clk 00:24:28]} {[%emt 00:00:31]} 37. g4 {[%clk
00:34:34]} {[%emt 00:00:51]} hxg4 {[%clk 00:24:52]} {[%emt 00:00:06]} 38. hxg4
{[%clk 00:35:00]} {[%emt 00:00:04]} Bc7 {[%clk 00:25:12]} {[%emt 00:00:08]} 39.
g5 {[%clk 00:34:40]} {[%emt 00:00:52]} Bb6 {[%clk 00:25:21]} {[%emt 00:00:21]}
40. Bd2 {[%clk 00:33:46]} {[%emt 00:01:16]} Bd8 {[%clk 00:24:09]} {[%emt
00:01:49]} 41. Be1 {[%clk 00:33:49]} {[%emt 00:00:27]} Bc7 {[%clk 00:22:37]}
{[%emt 00:02:02]} 42. Bc3 {[%clk 00:28:24]} {[%emt 00:05:55]} Bd8 {[%clk
00:21:59]} {[%emt 00:01:07]} 43. b4 {[%clk 00:27:27]} {[%emt 00:01:29]} cxb4
{[%clk 00:22:18]} {[%emt 00:00:11]} 44. axb4 {[%clk 00:27:50]} {[%emt
00:00:08]} axb4 {[%clk 00:22:38]} {[%emt 00:00:10]} 45. Bxb4 {[%clk 00:27:58]}
{[%emt 00:00:21]} Bb6 {[%clk 00:22:57]} {[%emt 00:00:11]} 46. Ra8 {[%clk
00:22:49]} {[%emt 00:05:38]} Rd5 {[%clk 00:22:30]} {[%emt 00:00:58]} 47. Rc8+
{[%clk 00:22:28]} {[%emt 00:00:51]} Kb7 {[%clk 00:20:36]} {[%emt 00:02:20]} 48.
Rf8 {[%clk 00:21:43]} {[%emt 00:00:48]} Rd7 {[%clk 00:19:58]} {[%emt 00:01:10]}
49. Bd6 {[%clk 00:19:11]} {[%emt 00:03:30]} Bc7 {[%clk 00:19:52]} {[%emt
00:00:37]} 50. Kc5 {[%clk 00:18:52]} {[%emt 00:00:49]} Bb6+ {[%clk 00:20:17]}
{[%emt 00:00:05]} 51. Kb5 {[%clk 00:18:46]} {[%emt 00:00:35]} Bc7 {[%clk
00:19:01]} {[%emt 00:01:47]} 52. Bc5 {[%clk 00:14:53]} {[%emt 00:04:22]} Bd8
{[%clk 00:19:14]} {[%emt 00:00:18]} 53. Rh8 {[%clk 00:13:19]} {[%emt 00:01:56]}
Be7 {[%clk 00:18:35]} {[%emt 00:01:17]} 54. Bxe7 {[%clk 00:12:56]} {[%emt
00:00:53]} Rxe7 {[%clk 00:18:56]} {[%emt 00:00:08]} 55. Rd8 {[%clk 00:12:14]}
{[%emt 00:01:10]} Kc7 {[%clk 00:18:35]} {[%emt 00:00:53]} 56. Rd6 {[%clk
00:08:17]} {[%emt 00:04:25]} Re8 {[%clk 00:18:38]} {[%emt 00:00:29]} 57. Ra6
{[%clk 00:08:14]} {[%emt 00:00:29]} Rb8+ {[%clk 00:18:50]} {[%emt 00:00:22]} 58.
Kc5 {[%clk 00:08:26]} {[%emt 00:00:20]} Rb7 {[%clk 00:18:57]} {[%emt 00:00:23]}
59. Ra8 {[%clk 00:08:24]} {[%emt 00:00:29]} Kd7 {[%clk 00:19:10]} {[%emt
00:00:16]} 60. Rf8 {[%clk 00:06:38]} {[%emt 00:02:14]} Ke7 {[%clk 00:19:35]}
{[%emt 00:00:09]} 61. Ra8 {[%clk 00:06:45]} {[%emt 00:00:16]} Rb1 {[%clk
00:19:49]} {[%emt 00:00:24]} 1/2-1/2

[Event "Kvibergspelen September 2019"]
[Site "Prioritet Serneke Arena, Krutvagen 2, Gothenburg, Sweden"]
[Date "2019.09.29"]
[Round "7.20"]
[White "Malmstig, Erik"]
[Black "Jonsson, Jacob"]
[Result "1/2-1/2"]
[TimeControl "15 minutes + 5 seconds per move from move one (Round 1 - 4) / 90 minutes + 30 seconds per move from move one (Round 5 - 8)"]
[WhiteTitle "FM"]
[WhiteFideId "1702866"]
[BlackFideId "1726315"]
[WhiteElo "2257"]
[BlackElo "2029"]

1. d4 {[%clk 01:25:16]} {[%emt 00:03:03]} d5 {[%clk 01:30:41]} {[%emt
00:00:20]} 2. c4 {[%clk 01:25:35]} {[%emt 00:00:12]} e6 {[%clk 01:31:05]}
{[%emt 00:00:06]} 3. Nc3 {[%clk 01:25:53]} {[%emt 00:00:11]} Nf6 {[%clk
01:31:27]} {[%emt 00:00:08]} 4. Bg5 {[%clk 01:25:40]} {[%emt 00:00:43]} Be7
{[%clk 01:31:49]} {[%emt 00:00:09]} 5. e3 {[%clk 01:25:46]} {[%emt 00:00:23]}
O-O {[%clk 01:31:58]} {[%emt 00:00:22]} 6. Qc2 {[%clk 01:25:56]} {[%emt
00:00:19]} h6 {[%clk 01:29:42]} {[%emt 00:02:47]} 7. Bh4 {[%clk 01:25:51]}
{[%emt 00:00:34]} a6 {[%clk 01:18:51]} {[%emt 00:11:22]} 8. Nf3 {[%clk
01:24:31]} {[%emt 00:01:49]} Nbd7 {[%clk 01:16:01]} {[%emt 00:03:20]} 9. Rd1
{[%clk 01:22:47]} {[%emt 00:02:15]} Re8 {[%clk 01:10:05]} {[%emt 00:06:25]} 10.
Be2 {[%clk 01:18:32]} {[%emt 00:04:44]} dxc4 {[%clk 01:05:17]} {[%emt
00:05:18]} 11. Bxc4 {[%clk 01:18:37]} {[%emt 00:00:25]} b5 {[%clk 01:05:36]}
{[%emt 00:00:12]} 12. Be2 {[%clk 01:16:01]} {[%emt 00:03:06]} Bb7 {[%clk
01:05:19]} {[%emt 00:00:47]} 13. O-O {[%clk 01:16:03]} {[%emt 00:00:26]} Qc8
{[%clk 01:02:26]} {[%emt 00:03:25]} 14. Rc1 {[%clk 01:09:40]} {[%emt 00:06:53]}
c5 {[%clk 01:00:19]} {[%emt 00:02:37]} 15. Rfd1 {[%clk 01:04:18]} {[%emt
00:05:51]} Qc6 {[%clk 00:51:50]} {[%emt 00:08:59]} 16. Bf1 {[%clk 00:59:34]}
{[%emt 00:05:15]} Rac8 {[%clk 00:48:29]} {[%emt 00:03:51]} 17. Ne5 {[%clk
00:52:13]} {[%emt 00:07:51]} Nxe5 {[%clk 00:38:30]} {[%emt 00:10:29]} 18. dxe5
{[%clk 00:51:57]} {[%emt 00:00:46]} Ng4 {[%clk 00:38:39]} {[%emt 00:00:20]} 19.
Bg3 {[%clk 00:37:11]} {[%emt 00:15:17]} h5 {[%clk 00:36:34]} {[%emt 00:02:34]}
20. Qe2 {[%clk 00:35:08]} {[%emt 00:02:33]} g6 {[%clk 00:30:15]} {[%emt
00:06:50]} 21. f3 {[%clk 00:32:06]} {[%emt 00:03:32]} Nh6 {[%clk 00:29:54]}
{[%emt 00:00:52]} 22. Ne4 {[%clk 00:31:00]} {[%emt 00:01:35]} Nf5 {[%clk
00:27:49]} {[%emt 00:02:34]} 23. Bf4 {[%clk 00:25:40]} {[%emt 00:05:51]} Red8
{[%clk 00:25:33]} {[%emt 00:02:46]} 24. Qf2 {[%clk 00:19:04]} {[%emt 00:07:06]}
c4 {[%clk 00:19:59]} {[%emt 00:06:04]} 25. Nf6+ {[%clk 00:13:13]} {[%emt
00:06:20]} Kg7 {[%clk 00:20:16]} {[%emt 00:00:13]} 26. Bd3 {[%clk 00:12:05]}
{[%emt 00:01:38]} Qb6 {[%clk 00:15:30]} {[%emt 00:05:17]} 27. Be4 {[%clk
00:09:05]} {[%emt 00:03:29]} Bc5 {[%clk 00:14:25]} {[%emt 00:01:35]} 28. Bxb7
{[%clk 00:05:07]} {[%emt 00:04:29]} Nxe3 {[%clk 00:14:11]} {[%emt 00:00:43]} 29.
Rxd8 {[%clk 00:03:59]} {[%emt 00:01:38]} Rxd8 {[%clk 00:14:34]} {[%emt
00:00:08]} 30. Ne4 {[%clk 00:03:30]} {[%emt 00:00:58]} Bd4 {[%clk 00:14:17]}
{[%emt 00:00:47]} 31. Kh1 {[%clk 00:03:46]} {[%emt 00:00:14]} Nf5 {[%clk
00:14:03]} {[%emt 00:00:44]} 32. Qe2 {[%clk 00:03:20]} {[%emt 00:00:56]} Qxb7
{[%clk 00:13:42]} {[%emt 00:00:52]} 33. Bg5 {[%clk 00:03:33]} {[%emt 00:00:16]}
Rd5 {[%clk 00:13:13]} {[%emt 00:00:59]} 34. Bf6+ {[%clk 00:02:19]} {[%emt
00:01:44]} Kg8 {[%clk 00:12:42]} {[%emt 00:01:01]} 35. Re1 {[%clk 00:02:16]}
{[%emt 00:00:33]} Be3 {[%clk 00:10:33]} {[%emt 00:02:40]} 36. a4 {[%clk
00:01:42]} {[%emt 00:01:04]} Bh6 {[%clk 00:10:10]} {[%emt 00:00:53]} 37. axb5
{[%clk 00:01:49]} {[%emt 00:00:23]} Rxb5 {[%clk 00:09:55]} {[%emt 00:00:45]} 38.
Qxc4 {[%clk 00:01:38]} {[%emt 00:00:41]} Rxb2 {[%clk 00:10:03]} {[%emt
00:00:22]} 39. Qd3 {[%clk 00:00:39]} {[%emt 00:01:29]} Qb4 {[%clk 00:08:11]}
{[%emt 00:02:21]} 40. Rd1 {[%clk 00:00:33]} {[%emt 00:00:36]} Ne3 {[%clk
00:08:04]} {[%emt 00:00:37]} 41. Rg1 {[%clk 00:00:45]} {[%emt 00:00:18]} Nd5
{[%clk 00:08:00]} {[%emt 00:00:34]} 42. Qxa6 {[%clk 00:00:47]} {[%emt
00:00:28]} Rb1 {[%clk 00:08:09]} {[%emt 00:00:22]} 43. Qa8+ {[%clk 00:00:59]}
{[%emt 00:00:17]} Bf8 {[%clk 00:08:30]} {[%emt 00:00:09]} 44. h4 {[%clk
00:00:57]} {[%emt 00:00:32]} Rxg1+ {[%clk 00:07:41]} {[%emt 00:01:19]} 45. Kxg1
{[%clk 00:01:24]} {[%emt 00:00:02]} Nxf6 {[%clk 00:07:45]} {[%emt 00:00:26]} 46.
Nxf6+ {[%clk 00:01:11]} {[%emt 00:00:44]} Kg7 {[%clk 00:08:07]} {[%emt
00:00:08]} 47. Qe4 {[%clk 00:00:38]} {[%emt 00:01:03]} 1/2-1/2

[Event "Kvibergspelen September 2019"]
[Site "Prioritet Serneke Arena, Krutvagen 2, Gothenburg, Sweden"]
[Date "2019.09.29"]
[Round "8.2"]
[White "Hector, Jonny"]
[Black "Seo, Jung Min"]
[Result "1/2-1/2"]
[TimeControl "15 minutes + 5 seconds per move from move one (Round 1 - 4) / 90 minutes + 30 seconds per move from move one (Round 5 - 8)"]
[WhiteTitle "GM"]
[BlackTitle "FM"]
[WhiteFideId "1700090"]
[BlackFideId "1734687"]
[WhiteElo "2477"]
[BlackElo "2437"]

1. e4 {[%clk 01:30:55]} {[%emt 00:00:04]} c5 {[%clk 01:30:59]} {[%emt
00:00:03]} 2. Nf3 {[%clk 01:31:16]} {[%emt 00:00:08]} Nc6 {[%clk 01:31:19]}
{[%emt 00:00:11]} 3. Nc3 {[%clk 01:31:40]} {[%emt 00:00:06]} g6 {[%clk
01:31:44]} {[%emt 00:00:06]} 4. d4 {[%clk 01:31:48]} {[%emt 00:00:21]} cxd4
{[%clk 01:32:10]} {[%emt 00:00:05]} 5. Nxd4 {[%clk 01:32:11]} {[%emt 00:00:06]}
Bg7 {[%clk 01:32:36]} {[%emt 00:00:04]} 6. Be3 {[%clk 01:32:00]} {[%emt
00:00:41]} Nf6 {[%clk 01:31:14]} {[%emt 00:01:53]} 7. Bc4 {[%clk 01:32:19]}
{[%emt 00:00:10]} d6 {[%clk 01:31:07]} {[%emt 00:00:37]} 8. h3 {[%clk
01:30:52]} {[%emt 00:01:56]} Bd7 {[%clk 01:31:11]} {[%emt 00:00:28]} 9. O-O
{[%clk 01:29:10]} {[%emt 00:02:10]} O-O {[%clk 01:30:08]} {[%emt 00:01:34]} 10.
Bb3 {[%clk 01:23:46]} {[%emt 00:05:55]} a6 {[%clk 01:22:28]} {[%emt 00:08:10]}
11. f4 {[%clk 01:18:30]} {[%emt 00:05:44]} Nxd4 {[%clk 01:21:20]} {[%emt
00:01:39]} 12. Bxd4 {[%clk 01:18:32]} {[%emt 00:00:28]} Bc6 {[%clk 01:21:37]}
{[%emt 00:00:14]} 13. Qd3 {[%clk 01:05:43]} {[%emt 00:13:18]} Nd7 {[%clk
01:18:54]} {[%emt 00:03:15]} 14. Bxg7 {[%clk 01:04:38]} {[%emt 00:01:33]} Kxg7
{[%clk 01:19:16]} {[%emt 00:00:09]} 15. Rad1 {[%clk 01:00:46]} {[%emt
00:04:21]} Rc8 {[%clk 01:15:14]} {[%emt 00:04:32]} 16. Qd4+ {[%clk 00:57:35]}
{[%emt 00:03:41]} Kg8 {[%clk 01:15:17]} {[%emt 00:00:27]} 17. e5 {[%clk
00:57:43]} {[%emt 00:00:21]} dxe5 {[%clk 01:14:25]} {[%emt 00:01:24]} 18. fxe5
{[%clk 00:58:09]} {[%emt 00:00:03]} e6 {[%clk 01:14:24]} {[%emt 00:00:31]} 19.
Qf4 {[%clk 00:55:24]} {[%emt 00:03:14]} b5 {[%clk 01:07:12]} {[%emt 00:07:44]}
20. Rd6 {[%clk 00:47:54]} {[%emt 00:07:59]} b4 {[%clk 00:57:23]} {[%emt
00:10:20]} 21. Nd1 {[%clk 00:47:43]} {[%emt 00:00:40]} Bb5 {[%clk 00:46:01]}
{[%emt 00:11:52]} 22. Re1 {[%clk 00:47:43]} {[%emt 00:00:30]} a5 {[%clk
00:44:21]} {[%emt 00:02:11]} 23. c4 {[%clk 00:47:32]} {[%emt 00:00:40]} bxc3
{[%clk 00:44:25]} {[%emt 00:00:26]} 24. Nxc3 {[%clk 00:45:51]} {[%emt
00:02:11]} Bc6 {[%clk 00:44:32]} {[%emt 00:00:23]} 25. Kh2 {[%clk 00:44:46]}
{[%emt 00:01:34]} Qe7 {[%clk 00:42:31]} {[%emt 00:02:32]} 26. Qd4 {[%clk
00:37:19]} {[%emt 00:07:57]} Nb8 {[%clk 00:39:40]} {[%emt 00:03:21]} 27. Ba4
{[%clk 00:33:28]} {[%emt 00:04:21]} Ba8 {[%clk 00:38:58]} {[%emt 00:01:12]} 28.
Qf4 {[%clk 00:32:19]} {[%emt 00:01:39]} Qb7 {[%clk 00:36:09]} {[%emt 00:03:20]}
29. Re2 {[%clk 00:31:16]} {[%emt 00:01:31]} Qb4 {[%clk 00:36:09]} {[%emt
00:00:30]} 30. Rd4 {[%clk 00:31:32]} {[%emt 00:00:14]} Qc5 {[%clk 00:35:07]}
{[%emt 00:01:33]} 31. Qh4 {[%clk 00:27:34]} {[%emt 00:04:28]} Nc6 {[%clk
00:33:16]} {[%emt 00:02:21]} 32. Bxc6 {[%clk 00:24:15]} {[%emt 00:03:50]} Bxc6
{[%clk 00:33:45]} 33. Rc4 {[%clk 00:23:59]} {[%emt 00:00:46]} Qa7 {[%clk
00:33:45]} {[%emt 00:00:30]} 34. Rf4 {[%clk 00:22:26]} {[%emt 00:02:02]} Rcd8
{[%clk 00:28:39]} {[%emt 00:05:37]} 35. Ref2 {[%clk 00:20:16]} {[%emt
00:02:39]} Qe3 {[%clk 00:27:00]} {[%emt 00:02:10]} 36. Re2 {[%clk 00:16:38]}
{[%emt 00:04:08]} Qa7 {[%clk 00:24:12]} {[%emt 00:03:19]} 37. Qg5 {[%clk
00:13:06]} {[%emt 00:04:01]} Rd4 {[%clk 00:21:09]} {[%emt 00:03:34]} 38. Rxd4
{[%clk 00:13:26]} {[%emt 00:00:09]} Qxd4 {[%clk 00:21:35]} {[%emt 00:00:04]} 39.
Rd2 {[%clk 00:13:42]} {[%emt 00:00:14]} Qb6 {[%clk 00:21:10]} {[%emt 00:00:56]}
40. Nd1 {[%clk 00:13:41]} {[%emt 00:00:30]} Qc7 {[%clk 00:21:06]} {[%emt
00:00:35]} 41. Qf6 {[%clk 00:13:48]} {[%emt 00:00:21]} Bd5 {[%clk 00:17:54]}
{[%emt 00:03:43]} 42. b3 {[%clk 00:11:27]} {[%emt 00:02:51]} Qc1 {[%clk
00:17:35]} {[%emt 00:00:50]} 43. Qf2 {[%clk 00:11:24]} {[%emt 00:00:31]} f6
{[%clk 00:14:38]} {[%emt 00:03:28]} 44. exf6 {[%clk 00:10:43]} {[%emt
00:01:11]} Rxf6 {[%clk 00:15:01]} {[%emt 00:00:08]} 45. Qxf6 {[%clk 00:10:05]}
{[%emt 00:01:07]} Qxd2 {[%clk 00:15:25]} {[%emt 00:00:07]} 46. Nf2 {[%clk
00:10:05]} {[%emt 00:00:30]} Qxa2 {[%clk 00:15:32]} {[%emt 00:00:23]} 47. Qd8+
{[%clk 00:09:45]} {[%emt 00:00:48]} Kf7 {[%clk 00:15:25]} {[%emt 00:00:38]} 48.
Qd7+ {[%clk 00:09:08]} {[%emt 00:01:06]} Kf8 {[%clk 00:12:46]} {[%emt
00:03:09]} 49. Qc8+ {[%clk 00:08:56]} {[%emt 00:00:42]} Kg7 {[%clk 00:12:54]}
{[%emt 00:00:22]} 50. Qc7+ {[%clk 00:08:49]} {[%emt 00:00:37]} Kg8 {[%clk
00:13:19]} {[%emt 00:00:06]} 51. Qd8+ {[%clk 00:08:59]} {[%emt 00:00:19]}
1/2-1/2